Cogmind - Beta 15 @@@ ROGUE MODE // 2025.05.06 @ 19:43:56 Player: XDRM Result: Destroyed by as-05123 with Assembled Heavy Rifle Performance ------------- Evolutions (0) 0 Regions Visited (2) 400 Robots Destroyed (27) 135 Value Destroyed (576) 576 Prototype IDs (5) 100 Alien Tech Used (0) 0 Bonus (-2) -2 TOTAL SCORE: 1209 Bonus ------- Friendly Fire -2 Cogmind --------- Core Integrity 0/250 Matter 300/300 Energy 148/160 System Corruption 0% Temperature Cool (0) Movement Rolling (115) Ox1 Location -10/Mines Parts ------- > --- POWER (1) -------- Light Nuclear Core > --- PROPULSION (2) --- Compact Wheel > --- UTILITY (2) ------ Large Storage Unit Transport Network Coupler > --- WEAPON (2) ------- Light Assault Rifle Light Assault Rifle > --- INVENTORY (15) --- Large Storage Unit Medium Matter Pod (100) Targeting Computer Targeting Computer Targeting Computer Targeting Computer Tractor Beam Light Assault Rifle Light Assault Rifle Shotgun Shotgun Shotgun Peak State ------------ > --- POWER ------------ Light Ion Engine > --- PROPULSION ------- Wheel Wheel > --- UTILITY ---------- Small Storage Unit Transport Network Coupler > --- WEAPON ----------- Shotgun Shotgun > --- INVENTORY -------- Light Nuclear Core Targeting Computer Targeting Computer Targeting Computer Targeting Computer Shotgun Shotgun [Rating: 10] Favorites ----------- Power Light Ion Engine Engine Light Ion Engine Power Core Light Nuclear Core Propulsion Wheel Wheel Wheel Utility Small Storage Unit Device Seismic Detector Storage Small Storage Unit Processor Transport Network Coupler Protection Light Armor Plating Weapon Shotgun Energy Gun Medium Laser Ballistic Gun Shotgun Launcher Grenade Launcher Build | -11 -10 -10 ------- Run | Yrd Mat Min Slots Evolved . | . . . Power . | . . . Propulsion . | . . . Utility . | . . . Weapon . | . . . Parts Attached 24 | 8 12 4 Power 3 | 1 1 1 Engine 2 | 1 1 . Core 1 | . . 1 Reactor . | . . . Propulsion 6 | 2 4 . Treads . | . . . Leg . | . . . Wheel 6 | 2 4 . Hover . | . . . Flight . | . . . Utility 6 | 3 3 . Device 2 | 2 . . Storage 2 | 1 1 . Processor 1 | . 1 . Hackware . | . . . Protection 1 | . 1 . Artifact . | . . . Weapon 9 | 2 4 3 Energy Gun 3 | 2 1 . Energy Cannon . | . . . Ballistic Gun 5 | . 3 2 Ballistic Cannon . | . . . Launcher 1 | . . 1 Special Weapon . | . . . Impact Weapon . | . . . Slashing Weapon . | . . . Piercing Weapon . | . . . Special Melee Weapon . | . . . Unidentified Prototypes . | . . . Parts Lost 9 | . 5 4 Power 2 | . 1 1 Propulsion 3 | . 2 1 Utility 1 | . 1 . Weapon 3 | . 1 2 Highest Loss Streak 4 | . 2 4 To Critical Strikes . | . . . Average Backups 8 | 2 9 14 Power . | . . . Propulsion 1 | 1 1 . Utility 3 | . 4 7 Weapon 2 | . 2 6 Tool/Special . | . . . Unused Backups 22 | 3 8 11 Power 1 | . 1 . Propulsion 3 | 2 1 . Utility 12 | 1 4 7 Weapon 6 | . 2 4 Tool/Special . | . . . Average Slot Usage (%) 94 | . 95 90 Engine 13 | . 14 10 Wheel 27 | . 27 25 Device 1 | . 1 . Storage 14 | . 14 14 Processor 9 | . 8 14 Protection 3 | . 3 . Energy Gun 5 | . 5 . Ballistic Gun 18 | . 18 18 Peak Build Rating 10 | 7 10 10 Average Rating 8 | 5 8 9 On Entrance 5 | . 7 10 Naked Turns . | . . . Heaviest Build 29 | 15 29 29 Greatest Support 26 | 26 26 26 Greatest Overweight (x) 1 | . 1 1 Average Overweight (x) . | . . . Largest Inventory Capacity 15 | 8 15 15 Average Capacity 10 | 7 10 15 Most Carried 15 | 6 15 15 Average Carried 8 | 2 9 14 Final Capacity 15 | 8 15 15 Final Carried 15 | 6 15 12 Class Distribution -------------------- 100% | Mutant Dominant Class ---------------- Mutant | -10/Materials Mutant | -10/Mines Resources | -11 -10 -10 ----------- Run | Yrd Mat Min Matter Collected 763 | 280 323 160 Remotely . | . . . Salvage Created 787 | 168 583 36 Parts 56 | 17 32 7 Haulers Intercepted 2 | . 2 . Recyclers Shooed 1 | . 1 . Parts Field Recycled . | . . . Retrieved Matter . | . . . Parts Self-Destructed . | . . . Prevented . | . . . Kills | -11 -10 -10 ------- Run | Yrd Mat Min Combat Hostiles Destroyed 24 | . 11 13 Guns 11 | . 11 . AOE 13 | . . 13 Classes Destroyed 7 | 2 3 2 Tunneler 5 | 5 . . Hauler 2 | . 2 . Recycler 1 | 1 . . Watcher 3 | . 3 . Swarmer 5 | . . 5 Grunt 11 | . 11 . Assembled 8 | . . 8 Best Kill Streak 13 | 6 5 13 Combat Bots Only 13 | . 5 13 Max Kills in Single Turn 4 | 1 1 4 Gunslinging . | . . . Exploded 4 | . . 4 Melee . | . . . Uniques/NPCs Destroyed . | . . . Combat | -11 -10 -10 -------- Run | Yrd Mat Min Hostile Shots Fired 85 | . 52 33 Missed 15 | . 8 7 Hits 70 | . 44 26 Melee 2 | . . 2 Projectile 68 | . 44 24 Critical Strikes 3 | . 2 1 Damage Taken 1071 | 50 614 407 Core 251 | . 137 114 Absorbed by Shields . | . . . Core Remaining (%) 100 | 100 . . Volleys Fired 86 | 9 70 7 Largest 2 | 2 2 1 Hottest 90 | 90 90 30 Shots Fired 136 | 18 111 7 Gun 129 | 18 111 . Cannon . | . . . Launcher 7 | . . 7 Special . | . . . Kinetic 74 | . 74 . Thermal 42 | 9 33 . Explosive 7 | . . 7 Electromagnetic 13 | 9 4 . Robot Hit Streak 11 | 5 10 11 Robot Miss Streak 7 | 1 7 . Penetration Max . | . . . Secondary Targets 1 | . 1 . Max Gunslinging Chain 1 | . 1 . Shots Hit Robots 97 | 11 83 3 Core Hits 72 | 6 37 29 Critical Kills . | . . . Critical Parts Destroyed 1 | . 1 . Critical Strikes 6 | 1 5 . Burn 5 | 1 4 . Destroy 1 | . 1 . Melee Attacks . | . . . Impact . | . . . Slashing . | . . . Piercing . | . . . Sneak Attacks . | . . . Combat Hostiles . | . . . Follow-up Attacks . | . . . Damage Inflicted 2029 | 222 1076 731 Guns 1224 | 148 1076 . Cannons . | . . . Explosions 805 | 74 . 731 Melee . | . . . Ramming . | . . . Kinetic 693 | . 693 . Thermal 447 | 125 322 . Explosive 731 | . . 731 Electromagnetic 158 | 97 61 . Impact . | . . . Slashing . | . . . Piercing . | . . . Highest Corruption . | . . . Average Corruption . | . . . Corruption Purged . | . . . Corruption Blocked . | . . . Overload Shots . | . . . Overflow Damage 18 | 17 . 1 Projectiles . | . . . Explosions 18 | 17 . 1 Melee . | . . . Knockbacks . | . . . Impact . | . . . Kinetic . | . . . Secondary . | . . . Self-Inflicted Damage 118 | 50 . 68 Shots 4 | 2 . 2 Rammed . | . . . Targets Rammed . | . . . Kicked . | . . . Crushed . | . . . Highest Temperature 276 | 162 276 . Average Temperature 66 | 73 64 . Received Heat Transfer 378 | . 378 . Siege Activations . | . . . Martial Activations . | . . . Shielding Activations . | . . . Robots Disrupted . | . . . Combat Hostiles . | . . . Robots Corrupted . | . . . Combat Hostiles . | . . . Parts Fried . | . . . Impact Corruptions . | . . . Robots Melted . | . . . Combat Hostiles . | . . . Parts Melted . | . . . Heat Transferred 1543 | 322 1221 . Parts Sabotaged . | . . . Parts Stolen . | . . . Parts Stripped . | . . . Power Chain Reactions 2 | 2 . . Alert | -11 -10 -10 ------- Run | Yrd Mat Min Maximum Alert Level . | . . . Low Security (%) 100 | 100 100 100 Level 1 . | . . . Level 2 . | . . . Level 3 . | . . . Level 4 . | . . . Level 5 . | . . . High Security . | . . . Max Security . | . . . Peak Influence 129 | 15 102 129 Initial 10 | . . 10 Average 28 | 2 30 39 Influence Increases 544 | 30 335 179 Destroy 0b10 Robot/C 320 | . 220 100 Destroy 0b10 Robot/NC 55 | 30 25 . Destroy Leader 80 | . 60 20 Successful Hack 15 | . 15 . Disable Machine 30 | . . 30 Destroy Structure 29 | . . 29 Lose Combat Pursuer 15 | . 15 . Influence Decreases 425 | 30 308 87 Entered New Map 17 | . . 17 Time Decay 353 | 30 293 30 Lost Part 55 | . 15 40 Squads Dispatched 2 | . 2 . Investigation 2 | . 2 . Extermination . | . . . Reinforcement . | . . . Assault . | . . . Garrison . | . . . Intercept . | . . . Searches Triggered . | . . . Construction Impeded . | . . . Haulers Reinforced . | . . . Active Scanning Responses . | . . . Cargo Convoy Interrupts . | . . . Stealth | -11 -10 -10 --------- Run | Yrd Mat Min Distress Signals 1 | . 1 . Communications Jammed . | . . . Distress Signals . | . . . Times Spotted 40 | . 19 21 Peak Tracking Total 19 | . 6 19 Tactical Retreats 3 | . 1 2 Traps | -11 -10 -10 ------- Run | Yrd Mat Min Traps Triggered 1 | . 1 . Indirectly . | . . . Trap Hack Attempts . | . . . Triggered . | . . . Disarmed . | . . . Reprogrammed . | . . . Reused . | . . . Traps Extracted . | . . . Installed . | . . . Triggered . | . . . Machines | -11 -10 -10 ---------- Run | Yrd Mat Min Machines Disabled 2 | . . 2 Max in Single Turn 2 | . . 2 Machines Repaired . | . . . Machines Dismantled . | . . . Machines Sabotaged . | . . . Overloaded Fab Kills . | . . . Hacking | -11 -10 -10 --------- Run | Yrd Mat Min Machines Accessed 6 | . 6 . Terminals 6 | . 6 . Fabricators . | . . . Repair Stations . | . . . Recycling Units . | . . . Scanalyzers . | . . . Garrison Access . | . . . Total Hacks 23 | . 23 . Successful 9 | . 9 . Failed 13 | . 13 . Catastrophic 2 | . 2 . Database Lockouts 1 | . 1 . Manual 11 | . 11 . Terminals 23 | . 23 . Fabricators . | . . . Repair Stations . | . . . Recycling Units . | . . . Scanalyzers . | . . . Garrison Access . | . . . Terminal Hacks 7 | . 7 . Record 1 | . 1 . Robot Analysis 1 | . 1 . Prototype ID Bank 3 | . 3 . Locate Traps 1 | . 1 . Hauler Manifests 1 | . 1 . Fabricator Hacks . | . . . Repair Station Hacks . | . . . Recycling Unit Hacks . | . . . Scanalyzer . | . . . Garrison Access Hacks . | . . . Unauthorized Hacks 2 | . 2 . Terminals 2 | . 2 . Botnet 2 | . 2 . Fabricators . | . . . Repair Stations . | . . . Recycling Units . | . . . Scanalyzers . | . . . Garrison Access . | . . . Data Cores Recovered . | . . . Used . | . . . Hacking Detections 5 | . 5 . Full Trace Events 2 | . 2 . Feedback Events . | . . . Feedback Blocked . | . . . Robot Schematics Acquired . | . . . Robots Built . | . . . Authchips . | . . . Time . | . . . Total Robot Build Rating . | . . . Part Schematics Acquired . | . . . Parts Built . | . . . Authchips . | . . . Time . | . . . Total Part Build Rating . | . . . Parts Repaired . | . . . Time . | . . . Parts Recycled . | . . . Recycled Matter . | . . . Retrieved Matter . | . . . Retrieved Components . | . . . Parts Scanalyzed . | . . . Part Schematics Acquired . | . . . Parts Damaged . | . . . Bothacking | -11 -10 -10 ------------ Run | Yrd Mat Min Used RIF Installer . | . . . Robots Hacked . | . . . Non-combat . | . . . Combat . | . . . Robot Hacks Applied . | . . . Relay Couplers Released . | . . . Fabnet Peak Effective % . | . . . Robots Rewired . | . . . Allies Hacked . | . . . Hacks Repelled . | . . . Allies | -11 -10 -10 -------- Run | Yrd Mat Min Total Allies . | . . . Largest Group . | . . . Highest-Rated Group . | . . . Highest-Rated Ally . | . . . Total Orders . | . . . Ally Attacks . | . . . Total Damage . | . . . Kills . | . . . Allies Corrupted . | . . . Allies Melted . | . . . Intel | -11 -10 -10 ------- Run | Yrd Mat Min Active Infowar (turns) 721 | 36 577 108 Seismic 120 | 36 84 . T.N.C. 601 | . 493 108 Robot Analysis Total 1 | . 1 . Derelict Logs Recovered . | . . . Drone Launches . | . . . Drone Recoveries . | . . . Exploration | -11 -10 -10 ------------- Run | Yrd Mat Min Turns Passed 1022 | 120 794 108 Spaces Moved 666 | 75 507 84 Core 3 | 3 . . Treads . | . . . Legs . | . . . Wheels 663 | 72 507 84 Hover . | . . . Flight . | . . . Fastest Speed 50 | 50 80 90 Average Speed 95 | 89 94 106 Slowest Speed 115 | 100 105 115 Overloaded Moves . | . . . Propulsion Burnouts . | . . . Robots Hopped . | . . . Potential Cave-ins . | . . . Cave-ins Triggered . | . . . Exploration Rate (%) 44 | 5 86 41 Regions Visited 2 Branch Regions 1 Pre-discovered Areas . | . . . Known Exits Taken . | . . . Unknown Exits Taken 2 | 1 1 . Scrap Searched . | . . . Spaces Dug . | . . . Terrain Destroyed 39 | 5 . 34 Melee . | . . . Projectile . | . . . AOE 39 | 5 . 34 Terrain Rammed . | . . . Walls Destroyed . | . . . Machines Disabled . | . . . Actions | -11 -10 -10 --------- Run | Yrd Mat Min Total 925 | 107 723 95 Wait 95 | 2 93 . Move 664 | 74 506 84 Hop . | . . . Pick Up 36 | 10 26 . Fast Attach 9 | 7 2 . Attach 9 | . 6 3 Detach . | . . . Swap 6 | 1 4 1 Drop 20 | 4 16 . Fire 86 | 9 70 7 Melee . | . . . Ram . | . . . Kick . | . . . Crush . | . . . Escape Stasis . | . . . Rewire . | . . . Trap . | . . . Miscellaneous . | . . . Route ------- -11/Scrapyard -10/Materials (discovered 3 exits: [*Mat x2] / [*Min]) -10/Mines History --------- Turn | Location | Event 13 | -11/Scrapyard | Discovered new exit (range 15) 121 | -11/Scrapyard | Entered Materials 302 | -10/Materials | Build established: Mutant 505 | -10/Materials | Central database locked down 625 | -10/Materials | Discovered new exit (range 3) 735 | -10/Materials | Discovered new exit (range 6) 810 | -10/Materials | Core integrity fell below 50% 823 | -10/Materials | Discovered new exit (range 15) 915 | -10/Materials | Entered Mines 983 | -10/Mines | Assembled infested the area 988 | -10/Mines | Assisted by a Guerilla fighting off Assembled 1007 | -10/Mines | Core integrity fell below 20% 1023 | -10/Mines | Destroyed by as-05123 with Assembled Heavy Rifle Last Messages --------------- 00995_ 2Z-XW0(h) destroyed. 00995_ as-80896 destroyed. 00995_ as-00912 destroyed. 00995_ Destroyed Asb. Hover Unit. 00995_ as-94587 destroyed. 00997_ as-21314 destroyed. 00998_ Lgt. Ion Engine destroyed. 00999_ Shotgun destroyed. 01001_ Wheel destroyed. 01006_ as-04820 destroyed. 01006_ S-10 Pest destroyed. 01006_ Core Extractor disabled. 01006_ Grenade Launcher destroyed. 01006_ Destroyed Grenade Launcher. 01006_ as-03520 destroyed. 01010_ as-78212 destroyed. 01010_ T-07 Excavator destroyed. 01015_ S-10 Pest destroyed. 01020_ Extracted 131 matter. 01022_ Extracted 10 matter. Map ----- +----------------------------------------------------+ | ????????? ????????????????????? | | ?????????? ????????????????????? | | ?????????## #???????????????????? | | ?????????# #???????????????????? | | ?????????# ????????##### ?????? | | ????????## % ##??????# ?????? | | ##??????# ??????# ???? | | ##????# ###???# """ #?? | | #????# ##??# """ #?? | | ##???# = % ##?# """ #?? | | ###?# % ###[*%[ #?? | | ##?# %=%"" #?? | | ? ## ==""" #?? | | ?# #?## % % "" #?? | | ## #??## = ## #?? | | # ##### ! ###### "" #?? | | # ## ##????# """ #?? | | ###?????# """ #?? | | ##???????# #?? | | ###### ##????????# #?? | | ##????#### #???????#####a ####?? | | #????????## #???????# #????? | | ?????????? #?###### ! #????? | | ??????????####### ! #????? | | ???????????????# ! #????? | | ???????????????# !@! #????? | | ???????????????# #????? | | ???????????????## # #????? | | ????????????????## ???? | | #????????????????##### ??? | | #????????????????????# #?? | | #????????????????????## #?? | | #?????????????????????#### ##?? | | ??????????????????????????#####??? | | ?????????????????????????????????? | | | | | | | | | | | | | | | | | | | | | | | | | | | | | | | +----------------------------------------------------+ Best States ------------- Heat Dissipation 25 Energy Generation 14 Energy Capacity 250 Matter Stores 300 Matter Capacity 300 Sight Range 16 Terrain Scan Density 10 Armor Coverage 150 Evasion (%) 44 Item Schematics ----------------- None Robot Schematics ------------------ None Fabricated ------------ Nothing Repaired ---------- Nothing Alien Tech Used ----------------- None Achievements -------------- None Challenges ------------ None Game ------ Seed BattleTitaniumMiniperforator Manual? 0 Play Time 00:24:08 Cumulative 68.9 hours Start 2025.05.06 @ 18:44:16 End 2025.05.06 @ 19:43:56 Sessions 1 Manual Loads 0 Difficulty Rogue Special Mode None Game No. 57 Rogue 57 Adventurer 0 Explorer 0 Win Type - Total 0 Types 0/0/0/0/0/0/0/0/0/0 Lore% 25 Gallery% 36 Achievement% 39 Wizard Run 0 Options --------- Layout 1 ASCII 0 Keyboard 0 Movement Mouse Keybinds 0 Fullscreen 2 Font 24/X11 Map View 50x35 Zoom Use 0% Tactical HUD 1 Map Filters NONE Filters NONE Steam 1 RUN: a665402c-505d-40bf-ab01-20f1090c41f3